[Event "DVM U14 2019"]
[Site "Magedburg"]
[Date "2019.12.29"]
[Round "5"]
[White "Lautenschläger, Friedrich"]
[Black "Boissel, Kasimir"]
[Result "0-1"]
[ECO "D43"]
[WhiteElo "1519"]
[BlackElo "1638"]
[Annotator "NA"]
[PlyCount "70"]
[EventDate "2019.12.27"]
[EventType "team-tourn"]
[EventRounds "7"]
[EventCountry "GER"]
[SourceTitle "playchess.com"]
[Source "ChessBase"]
[SourceQuality "1"]
[WhiteTeam "1. SC Anhalt"]
[BlackTeam "SV Königsjäger Süd-West"]
[TimeControl "40/5400+30:1800+30"]

1. d4 {[%emt 0:00:00]} d5 {[%emt 0:00:00]} 2. c4 {[%emt 0:00:00]} c6 {[%emt 0:00:00]} 3. Nc3 {[%emt 0:00:00]} e6 {[%emt 0:00:00]} 4. Nf3 {[%emt 0:00:13]} Nf6 {[%emt 0:00:00]} 5. a3 {[%emt 0:00:52]} Nbd7 {[%emt 0:00:08]} 6. Bf4 {[%emt 0:01:11]} Nh5 {[%emt 0:02:28]} 7. Bd2 {[%emt 0:05:34]} Bd6 {[%emt 0:02:16]} 8. c5 {[%emt 0:01:30]} Bc7 {[%emt 0:00:52]} 9. e3 {[%emt 0:02:20]} Nhf6 {[%emt 0:00:40]} 10. Bd3 {[%emt 0:01:11]} e5 {[%emt 0:01:06]} 11. Nxe5 {[%emt 0:10:01]} Nxe5 {[%emt 0:03:12]} 12. dxe5 {[%emt 0:01:30]} Bxe5 {[%emt 0:00:02]} 13. O-O {[%emt 0:08:48]} h5 {[%emt 0:08:51]} 14. Re1 {[%emt 0:11:19]} h4 {[%emt 0:08:48]} 15. f4 {[%emt 0:08:26]} Bc7 16. Qf3 {[%emt 0:11:32]} Bg4 {[%emt 0:06:30]} 17. Qf2 {[%emt 0:05:24]} Qd7 {[%emt 0:04:14]} 18. Be2 {[%emt 0:04:58]} O-O-O {[%emt 0:01:19]} 19. Bxg4 {[%emt 0:02:33]} Nxg4 {[%emt 0:00:36]} 20. Qf3 {[%emt 0:02:37]} d4 {[%emt 0:00:36]} 21. Nd1 {[%emt 0:03:43]} dxe3 {[%emt 0:01:46]} 22. Bxe3 {[%emt 0:04:32]} Rhe8 {[%emt 0:03:44]} 23. h3 {[%emt 0:01:39]} Nxe3 {[%emt 0:01:00]} 24. Nxe3 {[%emt 0:00:18]} Qd4 {[%emt 0:01:59]} 25. b4 {[%emt 0:01:50]} Bxf4 {[%emt 0:00:51]} 26. Rad1 {[%emt 0:03:01]} Rxe3 {[%emt 0:02:23]} 27. Rxd4 {[%emt 0:04:10]} Rxe1+ {[%emt 0:00:12]} 28. Kf2 {[%emt 0:00:26]} Bg3+ {[%emt 0:00:02]} 29. Qxg3 {[%emt 0:01:17]} hxg3+ {[%emt 0:00:05]} 30. Kxe1 {[%emt 0:00:04]} Rxd4 {[%emt 0:00:06]} 31. Ke2 {[%emt 0:00:25]} Rf4 {[%emt 0:00:23]} 32. Ke3 {[%emt 0:00:22]} Rf2 {[%emt 0:00:09]} 33. h4 {[%emt 0:00:08]} Rxg2 {[%emt 0:00:06]} 34. Kf3 {[%emt 0:00:02]} Ra2 {[%emt 0:00:17]} 35. Kxg3 {[%emt 0:00:09]} Rxa3+ {[%emt 0:00:04] normal} 0-1

[Event "DVM U14 2019"]
[Site "Magedburg"]
[Date "2019.12.29"]
[Round "5"]
[White "Frank, Marek"]
[Black "von Krosigk, Florian"]
[Result "0-1"]
[ECO "A20"]
[WhiteElo "1430"]
[BlackElo "1984"]
[Annotator "NA"]
[PlyCount "64"]
[EventDate "2019.12.27"]
[EventType "team-tourn"]
[EventRounds "7"]
[EventCountry "GER"]
[SourceTitle "playchess.com"]
[Source "ChessBase"]
[SourceQuality "1"]
[WhiteTeam "ESV Gera"]
[BlackTeam "Hamburger SK"]
[WhiteTeamCountry "GER"]
[BlackTeamCountry "GER"]
[TimeControl "40/5400+30:1800+30"]

1. c4 {[%emt 0:00:00]} e5 {[%emt 0:00:00]} 2. g3 {[%emt 0:00:14]} Nc6 {[%emt 0:00:41]} 3. Bg2 {[%emt 0:00:47]} Bc5 {[%emt 0:00:36]} 4. Nc3 {[%emt 0:01:28]} a6 {[%emt 0:00:07]} 5. e3 {[%emt 0:02:03]} d6 {[%emt 0:00:13]} 6. Nge2 {[%emt 0:01:17]} Ba7 {[%emt 0:00:14]} 7. a3 {[%emt 0:00:35]} h5 {[%emt 0:01:25] unterminated} 8. h4 {[%emt 0:02:29] unterminated} Nf6 {[%emt 0:02:47]} 9. Qc2 {[%emt 0:05:27] unterminated} Be6 {[%emt 0:08:09] unterminated} 10. Nd5 $11 {[%emt 0:10:18]} Bxd5 {[%emt 0:05:54]} 11. cxd5 {[%emt 0:00:29]} Ne7 {[%emt 0:00:05]} 12. Nc3 {[%emt 0:14:32]} O-O {[%emt 0:18:24]} 13. O-O {[%emt 0:06:54]} Nh7 {[%emt 0:14:59]} 14. d3 {[%emt 0:06:13]} f5 {[%emt 0:01:16]} 15. Qe2 {[%emt 0:05:09]} Nf6 {[%emt 0:05:10]} 16. Kh1 {[%emt 0:05:46]} Ng6 {[%emt 0:09:03]} 17. Bh3 {[%emt 0:06:11]} Ng4 {[%emt 0:07:16]} 18. f3 {[%emt 0:07:45]} Nh6 {[%emt 0:00:34]} 19. f4 {[%emt 0:10:52]} Ng4 {[%emt 0:02:16]} 20. Bxg4 {[%emt 0:02:02]} hxg4 {[%emt 0:01:25]} 21. h5 {[%emt 0:03:19]} Ne7 {[%emt 0:02:58]} 22. fxe5 {[%emt 0:00:45]} dxe5 {[%emt 0:00:26]} 23. e4 {[%emt 0:00:33]} Qe8 {[%emt 0:02:00]} 24. Qh2 {[%emt 0:01:00]} fxe4 {[%emt 0:00:27]} 25. Bg5 {[%emt 0:05:07]} exd3 {[%emt 0:01:25]} 26. h6 {[%emt 0:00:16]} Nf5 {[%emt 0:11:54]} 27. hxg7 {[%emt 0:00:22]} Nxg7 {[%emt 0:00:05]} 28. Ne4 {[%emt 0:00:07]} Qd7 {[%emt 0:00:33]} 29. Qg2 {[%emt 0:01:24]} Nh5 {[%emt 0:00:49]} 30. Bh6 {[%emt 0:00:51]} Qh7 {[%emt 0:00:17]} 31. Rxf8+ {[%emt 0:00:34]} Rxf8 {[%emt 0:00:02]} 32. Bd2 {[%emt 0:00:37]} Nxg3# {[%emt 0:00:02] normal} 0-1

[Event "DVM U14 2019"]
[Site "Magedburg"]
[Date "2019.12.29"]
[Round "6"]
[White "Weihrauch, Jakob"]
[Black "Nied, Pascal"]
[Result "1-0"]
[ECO "C01"]
[WhiteElo "2169"]
[BlackElo "1717"]
[Annotator "NA"]
[PlyCount "113"]
[EventDate "2019.12.27"]
[EventType "team-tourn"]
[EventRounds "7"]
[EventCountry "GER"]
[SourceTitle "playchess.com"]
[Source "ChessBase"]
[SourceQuality "1"]
[WhiteTeam "Hamburger SK"]
[BlackTeam "SC Untergrombach"]
[WhiteTeamCountry "GER"]
[TimeControl "40/5400+30:1800+30"]

1. e4 {[%emt 0:00:00]} e6 {[%emt 0:00:00]} 2. d4 {[%emt 0:00:00]} d5 {[%emt 0:00:00]} 3. exd5 {[%emt 0:01:00]} exd5 {[%emt 0:00:00]} 4. Nf3 {[%emt 0:00:03]} Nf6 {[%emt 0:00:19]} 5. Bd3 {[%emt 0:00:05]} Bd6 {[%emt 0:00:19]} 6. Qe2+ {[%emt 0:00:22]} Qe7 {[%emt 0:00:36]} 7. Qxe7+ {[%emt 0:00:03]} Bxe7 {[%emt 0:00:08]} 8. Bf4 {[%emt 0:00:05]} c6 {[%emt 0:00:40]} 9. O-O {[%emt 0:00:21]} O-O {[%emt 0:00:16]} 10. Re1 {[%emt 0:00:22]} Re8 {[%emt 0:01:11]} 11. Nbd2 {[%emt 0:00:11]} Bg4 {[%emt 0:01:51]} 12. Ne5 {[%emt 0:01:56]} Bh5 {[%emt 0:01:22]} 13. h3 {[%emt 0:01:12]} Nbd7 {[%emt 0:01:46]} 14. g4 {[%emt 0:00:25]} Bg6 {[%emt 0:00:21]} 15. Nxg6 {[%emt 0:02:20]} hxg6 {[%emt 0:00:16]} 16. Nf3 {[%emt 0:00:41]} Bf8 {[%emt 0:07:14]} 17. Ne5 {[%emt 0:00:37]} Nxe5 {[%emt 0:13:51]} 18. dxe5 {[%emt 0:00:27]} Nd7 {[%emt 0:00:29]} 19. Bg3 {[%emt 0:03:11]} Bc5 {[%emt 0:01:35]} 20. c3 {[%emt 0:01:18]} g5 {[%emt 0:08:40]} 21. Bf5 {[%emt 0:05:01]} Nf8 {[%emt 0:01:13]} 22. h4 {[%emt 0:00:07]} gxh4 {[%emt 0:01:18]} 23. Bxh4 {[%emt 0:00:05]} Ne6 {[%emt 0:01:00]} 24. Bg3 {[%emt 0:01:04]} g5 {[%emt 0:03:36]} 25. Kg2 {[%emt 0:02:36]} Kg7 {[%emt 0:04:45]} 26. Rad1 {[%emt 0:05:45]} Bb6 {[%emt 0:05:02]} 27. Rd3 {[%emt 0:02:01]} Re7 {[%emt 0:06:56]} 28. Bxe6 {[%emt 0:07:17]} Rxe6 {[%emt 0:00:36]} 29. Rf3 {[%emt 0:00:06]} Rae8 {[%emt 0:03:52]} 30. Rf5 {[%emt 0:00:25]} Bd8 {[%emt 0:05:29]} 31. f4 {[%emt 0:11:31]} gxf4 {[%emt 0:04:12]} 32. Bxf4 {[%emt 0:01:03]} f6 {[%emt 0:01:13]} 33. exf6+ {[%emt 0:04:04]} Bxf6 {[%emt 0:00:15]} 34. Rf1 {[%emt 0:00:44]} Re2+ {[%emt 0:06:08]} 35. Kg3 {[%emt 0:01:29]} R8e6 {[%emt 0:01:18]} 36. a4 {[%emt 0:07:46]} Rxb2 {[%emt 0:02:51]} 37. Rxf6 {[%emt 0:01:25]} Kxf6 {[%emt 0:06:51]} 38. Bc1+ {[%emt 0:00:06]} Kg6 {[%emt 0:00:28]} 39. Bxb2 {[%emt 0:00:04]} Re2 {[%emt 0:00:24]} 40. Rf2 {[%emt 0:01:14]} Re4 {[%emt 0:00:39]} 41. Rf4 {[%emt 0:32:19]} Re2 {[%emt 0:30:21]} 42. Ba3 {[%emt 0:01:34]} Re3+ {[%emt 0:02:51]} 43. Rf3 {[%emt 0:00:06]} Re4 {[%emt 0:01:01]} 44. a5 {[%emt 0:00:33]} Ra4 {[%emt 0:02:28]} 45. Bb4 {[%emt 0:00:06]} b6 {[%emt 0:04:04]} 46. axb6 {[%emt 0:01:35]} axb6 {[%emt 0:00:03]} 47. Be7 {[%emt 0:00:42]} Re4 {[%emt 0:02:53]} 48. Bd8 {[%emt 0:00:51]} d4 {[%emt 0:00:00]} 49. Bxb6 {[%emt 0:00:00]} dxc3 {[%emt 0:00:00]} 50. Rxc3 {[%emt 0:00:00]} Re6 {[%emt 0:00:00]} 51. Bc5 {[%emt 0:00:00]} Kf6 {[%emt 0:00:00]} 52. Kf4 {[%emt 0:00:00]} Kg6 {[%emt 0:00:00]} 53. g5 {[%emt 0:00:00]} Re8 {[%emt 0:00:00]} 54. Rd3 {[%emt 0:00:00]} Rc8 {[%emt 0:00:00]} 55. Rd6+ {[%emt 0:00:00]} Kg7 {[%emt 0:00:00]} 56. Kf5 {[%emt 0:00:00]} Kf7 {[%emt 0:00:00]} 57. g6+ {[%emt 0:00:00] normal} 1-0

[Event "DVM U14 2019"]
[Site "Magedburg"]
[Date "2019.12.29"]
[Round "6"]
[White "Eilenberg, Jonas"]
[Black "Zeuner, Ole"]
[Result "1-0"]
[ECO "A48"]
[WhiteElo "2112"]
[BlackElo "1794"]
[Annotator "NA"]
[PlyCount "42"]
[EventDate "2019.12.27"]
[EventType "team-tourn"]
[EventRounds "7"]
[EventCountry "GER"]
[SourceTitle "playchess.com"]
[Source "ChessBase"]
[SourceQuality "1"]
[WhiteTeam "SV Königsjäger Süd-West"]
[BlackTeam "Schachzwerge Magdeburg"]
[WhiteTeamCountry "GER"]
[BlackTeamCountry "GER"]
[TimeControl "40/5400+30:1800+30"]

1. d4 {[%emt 0:00:00]} Nf6 {[%emt 0:00:00]} 2. Nf3 {[%emt 0:00:00]} g6 {[%emt 0:00:00]} 3. Nbd2 {[%emt 0:00:00]} d5 {[%emt 0:00:39]} 4. b4 {[%emt 0:00:00]} Bg7 {[%emt 0:00:45]} 5. Bb2 {[%emt 0:00:04]} O-O {[%emt 0:00:52]} 6. e3 {[%emt 0:00:17]} Bf5 {[%emt 0:04:52]} 7. Rc1 {[%emt 0:02:16]} Ne4 {[%emt 0:06:44]} 8. Nxe4 {[%emt 0:03:29]} dxe4 {[%emt 0:00:48]} 9. Nd2 {[%emt 0:00:53]} h5 {[%emt 0:01:17]} 10. Be2 {[%emt 0:00:55]} Qd6 {[%emt 0:02:33]} 11. a3 {[%emt 0:02:18]} c6 {[%emt 0:04:24]} 12. c4 {[%emt 0:02:48]} Nd7 {[%emt 0:02:52]} 13. h3 {[%emt 0:01:35]} Nf6 {[%emt 0:04:01]} 14. g4 {[%emt 0:03:02]} hxg4 {[%emt 0:00:17]} 15. hxg4 {[%emt 0:00:07]} Be6 {[%emt 0:04:24]} 16. g5 {[%emt 0:01:18]} Nd7 {[%emt 0:01:00]} 17. Nxe4 {[%emt 0:00:22]} Qc7 {[%emt 0:00:03]} 18. Bg4 {[%emt 0:04:48]} Bxg4 {[%emt 0:04:01]} 19. Qxg4 {[%emt 0:00:12]} a5 {[%emt 0:02:11]} 20. Qh3 {[%emt 0:02:25]} Rfd8 {[%emt 0:01:15] normal} 21. d5 {[%emt 0:01:26] normal} Ne5 {[%emt 0:00:39] normal} 1-0

[Event "DVM U14 2019"]
[Site "Magedburg"]
[Date "2019.12.29"]
[Round "6"]
[White "Gallasch, Jonas"]
[Black "Schubert, Nikita"]
[Result "0-1"]
[ECO "D38"]
[WhiteElo "2107"]
[BlackElo "1914"]
[Annotator "NA"]
[PlyCount "100"]
[EventDate "2019.12.27"]
[EventType "team-tourn"]
[EventRounds "7"]
[EventCountry "GER"]
[SourceTitle "playchess.com"]
[Source "ChessBase"]
[SourceQuality "1"]
[WhiteTeam "SG Porz"]
[BlackTeam "ESV Gera"]
[WhiteTeamCountry "GER"]
[BlackTeamCountry "GER"]
[TimeControl "40/5400+30:1800+30"]

1. Nf3 {[%emt 0:00:00]} Nf6 {[%emt 0:00:00]} 2. c4 {[%emt 0:00:00]} e6 {[%emt 0:00:00]} 3. d4 {[%emt 0:00:00]} d5 {[%emt 0:00:00]} 4. Nc3 {[%emt 0:00:00]} Bb4 {[%emt 0:00:10]} 5. cxd5 {[%emt 0:00:14]} exd5 {[%emt 0:00:13]} 6. Bg5 {[%emt 0:00:07]} Qd6 {[%emt 0:01:27]} 7. Bxf6 {[%emt 0:00:37]} Qxf6 {[%emt 0:00:17]} 8. e3 {[%emt 0:00:51]} O-O {[%emt 0:03:18]} 9. Qc2 {[%emt 0:03:22]} Bf5 {[%emt 0:10:53]} 10. Qb3 {[%emt 0:02:42]} Qd6 {[%emt 0:01:07]} 11. a3 {[%emt 0:03:37]} Bxc3+ {[%emt 0:00:31]} 12. Qxc3 {[%emt 0:00:21]} Nd7 {[%emt 0:08:42]} 13. Be2 {[%emt 0:05:02]} Nf6 {[%emt 0:05:40]} 14. O-O {[%emt 0:05:35]} Ne4 {[%emt 0:02:19]} 15. Qb4 {[%emt 0:01:17]} Qxb4 {[%emt 0:17:40]} 16. axb4 {[%emt 0:00:45]} a6 {[%emt 0:00:28]} 17. b5 {[%emt 0:01:16]} axb5 {[%emt 0:00:46]} 18. Bxb5 {[%emt 0:00:14]} Nd6 {[%emt 0:01:34]} 19. Be2 {[%emt 0:00:55]} Bg4 {[%emt 0:02:57]} 20. Bd3 {[%emt 0:06:42]} Bf5 {[%emt 0:02:53]} 21. Be2 {[%emt 0:03:48]} Bg4 {[%emt 0:00:13]} 22. h3 {[%emt 0:02:56]} Bh5 {[%emt 0:00:50]} 23. g4 {[%emt 0:03:43]} Bg6 {[%emt 0:00:03]} 24. Rfc1 {[%emt 0:00:34]} c6 {[%emt 0:00:59]} 25. Ne5 {[%emt 0:00:35]} f6 {[%emt 0:15:06]} 26. Nd7 {[%emt 0:13:09]} Rfd8 {[%emt 0:01:50]} 27. Nb6 {[%emt 0:00:23]} Rxa1 {[%emt 0:00:46]} 28. Rxa1 {[%emt 0:00:06]} Bf7 {[%emt 0:00:54]} 29. Bd3 {[%emt 0:13:57]} Be6 {[%emt 0:01:10]} 30. Kg2 {[%emt 0:02:44]} h6 {[%emt 0:03:26]} 31. f3 {[%emt 0:04:41]} f5 {[%emt 0:01:34]} 32. Kg3 {[%emt 0:05:50]} Kf7 {[%emt 0:01:16]} 33. Ra3 {[%emt 0:04:28]} Kf6 {[%emt 0:03:13]} 34. b4 {[%emt 0:05:03]} g5 {[%emt 0:04:06]} 35. Rb3 {[%emt 0:02:00]} h5 {[%emt 0:07:41]} 36. b5 {[%emt 0:06:20]} cxb5 {[%emt 0:01:02]} 37. Bxb5 {[%emt 0:00:01]} hxg4 {[%emt 0:00:26]} 38. hxg4 {[%emt 0:00:57]} fxg4 {[%emt 0:00:09]} 39. fxg4 {[%emt 0:00:56]} Ne4+ {[%emt 0:00:05]} 40. Kg2 {[%emt 0:00:08]} Bxg4 {[%emt 0:01:33]} 41. Bd3 {[%emt 0:30:46]} Bf3+ {[%emt 0:06:24]} 42. Kg1 {[%emt 0:00:00]} g4 {[%emt 0:06:36]} 43. Bxe4 {[%emt 0:00:00]} Bxe4 {[%emt 0:00:54]} 44. Kf2 {[%emt 0:00:00]} Kg5 {[%emt 0:02:37]} 45. Na4 {[%emt 0:00:00]} Rf8+ {[%emt 0:05:39]} 46. Kg1 {[%emt 0:00:00]} g3 {[%emt 0:02:49]} 47. Rxb7 {[%emt 0:00:00]} Ra8 {[%emt 0:01:41]} 48. Rb4 {[%emt 0:00:00]} Rh8 {[%emt 0:00:31]} 49. Kf1 {[%emt 0:00:00]} Rh1+ {[%emt 0:00:41]} 50. Ke2 {[%emt 0:00:00]} g2 {[%emt 0:00:34] normal} 0-1

[Event "DVM U14 2019"]
[Site "Magedburg"]
[Date "2019.12.29"]
[Round "6"]
[White "von Krosigk, Florian"]
[Black "Richter, Simon"]
[Result "1-0"]
[ECO "C54"]
[WhiteElo "1984"]
[BlackElo "1476"]
[Annotator "NA"]
[PlyCount "75"]
[EventDate "2019.12.27"]
[EventType "team-tourn"]
[EventRounds "7"]
[EventCountry "GER"]
[SourceTitle "playchess.com"]
[Source "ChessBase"]
[SourceQuality "1"]
[WhiteTeam "Hamburger SK"]
[BlackTeam "SC Untergrombach"]
[WhiteTeamCountry "GER"]
[TimeControl "40/5400+30:1800+30"]

1. e4 {[%emt 0:00:00]} e5 {[%emt 0:00:00]} 2. Nf3 {[%emt 0:00:00]} Nc6 {[%emt 0:00:00]} 3. Bc4 {[%emt 0:00:00]} Bc5 {[%emt 0:00:00]} 4. c3 {[%emt 0:00:00]} Nf6 {[%emt 0:00:00]} 5. d4 {[%emt 0:00:10]} exd4 {[%emt 0:00:00]} 6. O-O {[%emt 0:00:06]} d6 {[%emt 0:01:05]} 7. cxd4 {[%emt 0:00:10]} Bb6 {[%emt 0:00:32]} 8. h3 {[%emt 0:00:32]} h6 {[%emt 0:01:57]} 9. Nc3 O-O {[%emt 0:02:10]} 10. Re1 {[%emt 0:08:20]} Na5 {[%emt 0:14:19]} 11. Bd3 {[%emt 0:05:21]} d5 {[%emt 0:04:59]} 12. e5 {[%emt 0:02:13]} Nh7 {[%emt 0:01:52]} 13. Bc2 {[%emt 0:04:17]} Be6 {[%emt 0:13:42]} 14. Bxh6 {[%emt 0:04:10]} gxh6 {[%emt 0:11:55]} 15. Qd3 {[%emt 0:00:03]} Re8 {[%emt 0:00:08]} 16. Qxh7+ {[%emt 0:00:11]} Kf8 {[%emt 0:00:04]} 17. Qxh6+ {[%emt 0:03:08]} Ke7 {[%emt 0:00:25]} 18. Qf6+ {[%emt 0:04:36]} Kd7 {[%emt 0:00:56]} 19. Nxd5 {[%emt 0:01:03]} Bxd5 {[%emt 0:12:25]} 20. Bf5+ {[%emt 0:00:12]} Be6 {[%emt 0:01:15]} 21. Qxf7+ {[%emt 0:00:04]} Kc8 {[%emt 0:01:14]} 22. Bxe6+ {[%emt 0:00:09]} Kb8 {[%emt 0:01:46]} 23. Qd7 {[%emt 0:00:38]} Qxd7 {[%emt 0:00:41]} 24. Bxd7 {[%emt 0:00:02]} Re7 {[%emt 0:00:21]} 25. e6 {[%emt 0:00:05]} c6 {[%emt 0:00:21]} 26. Nh4 {[%emt 0:01:13]} Bxd4 {[%emt 0:00:23]} 27. Nf5 {[%emt 0:00:05]} Bxf2+ {[%emt 0:00:10]} 28. Kxf2 {[%emt 0:00:04]} Nc4 {[%emt 0:00:10]} 29. Nxe7 {[%emt 0:00:10]} Nd6 {[%emt 0:00:09]} 30. Nxc6+ {[%emt 0:00:54]} bxc6 {[%emt 0:00:12]} 31. Bxc6 {[%emt 0:00:02]} Ne4+ {[%emt 0:00:09]} 32. Bxe4 {[%emt 0:00:06]} a5 {[%emt 0:00:05]} 33. Bxa8 {[%emt 0:00:04]} a4 {[%emt 0:00:05]} 34. e7 {[%emt 0:00:04]} a3 {[%emt 0:00:06]} 35. bxa3 {[%emt 0:00:05]} Kc7 {[%emt 0:00:06]} 36. e8=Q {[%emt 0:00:10]} Kb6 {[%emt 0:00:05]} 37. Qc6+ {[%emt 0:00:17]} Ka5 {[%emt 0:00:05]} 38. Re5# {[%emt 0:00:03] normal} 1-0

[Event "DVM U14 2019"]
[Site "Magedburg"]
[Date "2019.12.29"]
[Round "6"]
[White "Stockmann, Till"]
[Black "Sohr, Jim"]
[Result "1-0"]
[ECO "C73"]
[WhiteElo "1894"]
[BlackElo "1730"]
[Annotator "NA"]
[PlyCount "89"]
[EventDate "2019.12.27"]
[EventType "team-tourn"]
[EventRounds "7"]
[EventCountry "GER"]
[SourceTitle "playchess.com"]
[Source "ChessBase"]
[SourceQuality "1"]
[WhiteTeam "Schachzwerge Magdeburg"]
[BlackTeam "SV Königsjäger Süd-West"]
[WhiteTeamCountry "GER"]
[BlackTeamCountry "GER"]
[TimeControl "40/5400+30:1800+30"]

1. e4 {[%emt 0:00:00]} e5 {[%emt 0:00:00]} 2. Nf3 {[%emt 0:00:00]} Nc6 {[%emt 0:00:00]} 3. Bb5 {[%emt 0:00:56]} a6 {[%emt 0:00:00]} 4. Ba4 {[%emt 0:02:22]} d6 {[%emt 0:00:47]} 5. Bxc6+ {[%emt 0:00:08]} bxc6 {[%emt 0:00:12]} 6. d4 exd4 {[%emt 0:07:32]} 7. Nxd4 {[%emt 0:00:00]} c5 {[%emt 0:04:41]} 8. Nf3 {[%emt 0:05:13]} Ne7 {[%emt 0:08:26]} 9. O-O {[%emt 0:05:49]} g6 {[%emt 0:02:21]} 10. c4 {[%emt 0:07:54]} Bg7 {[%emt 0:03:29]} 11. Qc2 {[%emt 0:03:34]} O-O {[%emt 0:02:29]} 12. Be3 {[%emt 0:08:11]} Nc6 {[%emt 0:06:47]} 13. Nc3 {[%emt 0:09:57]} Rb8 {[%emt 0:04:46]} 14. Rab1 {[%emt 0:10:15]} f5 {[%emt 0:08:00]} 15. Bg5 {[%emt 0:03:35]} Bf6 {[%emt 0:04:02]} 16. Bxf6 {[%emt 0:00:44]} Qxf6 {[%emt 0:00:54]} 17. Qd2 {[%emt 0:01:47]} Ne7 {[%emt 0:11:07]} 18. Rfe1 {[%emt 0:02:34]} Bb7 {[%emt 0:02:37]} 19. e5 {[%emt 0:05:01]} dxe5 {[%emt 0:00:32]} 20. Nxe5 {[%emt 0:00:07]} Rbd8 {[%emt 0:01:52]} 21. Qe2 {[%emt 0:01:00]} Be4 {[%emt 0:01:48]} 22. Nxe4 {[%emt 0:00:58]} fxe4 {[%emt 0:03:52]} 23. Ng4 {[%emt 0:00:44]} Qf4 {[%emt 0:05:42]} 24. Qxe4 {[%emt 0:02:28]} Qxe4 {[%emt 0:02:18]} 25. Rxe4 {[%emt 0:00:26]} Nf5 {[%emt 0:03:06]} 26. Kf1 {[%emt 0:04:02]} Nd6 {[%emt 0:01:16]} 27. Re7 {[%emt 0:01:02]} h5 {[%emt 0:05:58]} 28. Ne3 {[%emt 0:01:33]} Rf7 {[%emt 0:00:49]} 29. Rxf7 {[%emt 0:02:40]} Kxf7 {[%emt 0:01:07]} 30. Rd1 {[%emt 0:01:01]} Ke6 {[%emt 0:01:40]} 31. b3 {[%emt 0:04:26]} c6 {[%emt 0:00:58]} 32. g3 {[%emt 0:05:29]} Rf8 {[%emt 0:01:26]} 33. Ng2 {[%emt 0:02:30]} g5 {[%emt 0:00:49]} 34. Re1+ {[%emt 0:01:11]} Kf6 {[%emt 0:01:19]} 35. f4 {[%emt 0:00:55]} Re8 {[%emt 0:02:11]} 36. Rxe8 {[%emt 0:04:15]} Nxe8 {[%emt 0:00:04]} 37. fxg5+ {[%emt 0:00:06]} Kxg5 {[%emt 0:00:04]} 38. Nf4 {[%emt 0:00:06]} Ng7 {[%emt 0:01:48]} 39. Kf2 {[%emt 0:00:29]} Kf5 {[%emt 0:01:26]} 40. Ke3 {[%emt 0:00:40]} Ke5 {[%emt 0:00:55]} 41. Nd3+ {[%emt 0:30:19]} Kd6 {[%emt 0:30:47]} 42. Kf4 {[%emt 0:01:17]} Ne6+ {[%emt 0:00:00]} 43. Kf5 {[%emt 0:00:00]} Nd4+ {[%emt 0:00:00]} 44. Kg6 {[%emt 0:00:00]} Nf3 {[%emt 0:00:00]} 45. h4 {[%emt 0:00:00] normal} 1-0

[Event "DVM U14 2019"]
[Site "Magedburg"]
[Date "2019.12.29"]
[Round "6"]
[White "Heutling, Elina"]
[Black "Korek, Jakob Alexander"]
[Result "1-0"]
[ECO "B18"]
[WhiteElo "1796"]
[BlackElo "1656"]
[Annotator "NA"]
[PlyCount "65"]
[EventDate "2019.12.27"]
[EventType "team-tourn"]
[EventRounds "7"]
[EventCountry "GER"]
[SourceTitle "playchess.com"]
[Source "ChessBase"]
[SourceQuality "1"]
[WhiteTeam "Schachzwerge Magdeburg"]
[BlackTeam "SV Königsjäger Süd-West"]
[WhiteTeamCountry "GER"]
[BlackTeamCountry "GER"]
[TimeControl "40/5400+30:1800+30"]

1. e4 {[%emt 0:00:00]} c6 {[%emt 0:00:00]} 2. d4 {[%emt 0:00:00]} d5 {[%emt 0:00:00]} 3. Nd2 {[%emt 0:00:00]} dxe4 {[%emt 0:00:00]} 4. Nxe4 {[%emt 0:00:00]} Bf5 {[%emt 0:00:09]} 5. Ng3 {[%emt 0:00:05]} Bg6 {[%emt 0:00:09]} 6. Nf3 {[%emt 0:00:15]} Nd7 {[%emt 0:00:16]} 7. Bc4 {[%emt 0:00:17]} e6 {[%emt 0:00:38]} 8. O-O {[%emt 0:00:16]} Ngf6 {[%emt 0:01:18]} 9. Nh4 {[%emt 0:02:53]} Nb6 {[%emt 0:01:57]} 10. Bb3 {[%emt 0:01:36]} Be7 {[%emt 0:02:30]} 11. c3 {[%emt 0:03:06]} O-O {[%emt 0:01:18]} 12. Nxg6 {[%emt 0:00:09]} hxg6 {[%emt 0:00:22]} 13. Re1 {[%emt 0:01:43]} Nbd5 {[%emt 0:00:51]} 14. Bc2 {[%emt 0:01:32]} Qd7 {[%emt 0:02:32]} 15. Qd3 {[%emt 0:05:33]} Rad8 {[%emt 0:02:43]} 16. h4 {[%emt 0:06:20]} Bd6 {[%emt 0:02:25]} 17. Ne4 {[%emt 0:09:04]} Nxe4 {[%emt 0:03:38]} 18. Qxe4 {[%emt 0:01:41]} Rfe8 {[%emt 0:03:34]} 19. Bg5 {[%emt 0:05:44]} Be7 {[%emt 0:03:32]} 20. Rad1 {[%emt 0:12:15]} Bf6 {[%emt 0:07:46]} 21. f4 {[%emt 0:13:18]} Qc7 {[%emt 0:08:28]} 22. Rf1 {[%emt 0:05:50]} Qe7 {[%emt 0:05:07]} 23. Rf3 {[%emt 0:04:58]} c5 {[%emt 0:07:04]} 24. dxc5 {[%emt 0:02:38]} Qxc5+ {[%emt 0:01:14]} 25. Kh1 {[%emt 0:00:41]} Qe7 {[%emt 0:18:35]} 26. Rg3 {[%emt 0:11:06]} Qc7 {[%emt 0:01:37]} 27. Rf1 {[%emt 0:03:51]} e5 {[%emt 0:02:33]} 28. f5 {[%emt 0:01:04]} Nf4 {[%emt 0:02:33]} 29. fxg6 {[%emt 0:03:42]} fxg6 {[%emt 0:02:38]} 30. Rgf3 {[%emt 0:03:06] normal} Bxg5 {[%emt 0:01:19]} 31. Bb3+ Kh8 {[%emt 0:02:06]} 32. hxg5 {[%emt 0:00:05] normal} Ne6 {[%emt 0:02:24] normal} 33. Rh3+ {[%emt 0:00:34]} 1-0